[Event "Late-Titled-Tuesday-Blitz-June-18-2024"]
[Site "Chess.com"]
[Date "2024.06.18"]
[Round "3"]
[White "DenLaz"]
[Black "Byniolus"]
[Result "1-0"]
[WhiteElo "3091"]
[BlackElo "2751"]
[TimeControl "180+1"]
[EndTime "14:25:11 PDT"]
[Termination "DenLaz won by resignation"]

1. d4 {[%clk 0:03:00.9]} 1... d5 {[%clk 0:02:58.5]} 2. c4 {[%clk 0:03:00.7]}
2... c6 {[%clk 0:02:59.1]} 3. Nf3 {[%clk 0:03:00.9]} 3... Nf6 {[%clk 0:02:59.7]}
4. Nc3 {[%clk 0:03:01.5]} 4... Qb6 {[%clk 0:02:59.2]} 5. Qc2 {[%clk 0:03:00.9]}
5... e6 {[%clk 0:02:51.7]} 6. Bg5 {[%clk 0:02:57.5]} 6... Nbd7 {[%clk
0:02:50.1]} 7. e3 {[%clk 0:02:57.4]} 7... Be7 {[%clk 0:02:49.6]} 8. Bd3 {[%clk
0:02:56.8]} 8... h6 {[%clk 0:02:48.2]} 9. Bh4 {[%clk 0:02:55.1]} 9... O-O {[%clk
0:02:47.5]} 10. O-O {[%clk 0:02:52.6]} 10... Re8 {[%clk 0:02:47.6]} 11. Rfd1
{[%clk 0:02:46.8]} 11... a6 {[%clk 0:02:41.4]} 12. Rac1 {[%clk 0:02:45.2]} 12...
Qd8 {[%clk 0:02:37.9]} 13. h3 {[%clk 0:02:37.7]} 13... b5 {[%clk 0:02:32.7]} 14.
c5 {[%clk 0:02:32.1]} 14... Nh5 {[%clk 0:02:15.3]} 15. Bxe7 {[%clk 0:02:31.4]}
15... Qxe7 {[%clk 0:02:16.2]} 16. Ne5 {[%clk 0:02:31.9]} 16... Nhf6 {[%clk
0:01:31.1]} 17. Nxc6 {[%clk 0:02:31.1]} 1-0

[Event "Late-Titled-Tuesday-Blitz-June-18-2024"]
[Site "Chess.com"]
[Date "2024.06.18"]
[Round "3"]
[White "Colombiano07"]
[Black "Abund"]
[Result "0-1"]
[WhiteElo "2320"]
[BlackElo "2673"]
[TimeControl "180+1"]
[EndTime "14:25:49 PDT"]
[Termination "Abund won by resignation"]

1. d4 {[%clk 0:02:59.6]} 1... g6 {[%clk 0:03:00.9]} 2. e4 {[%clk 0:02:59.2]}
2... Bg7 {[%clk 0:03:01.2]} 3. Nf3 {[%clk 0:02:59.8]} 3... c6 {[%clk 0:03:00.4]}
4. h3 {[%clk 0:02:56.5]} 4... d5 {[%clk 0:03:00.3]} 5. Nc3 {[%clk 0:02:56.4]}
5... dxe4 {[%clk 0:03:00.4]} 6. Nxe4 {[%clk 0:02:57.3]} 6... Nf6 {[%clk
0:03:01.1]} 7. Nxf6+ {[%clk 0:02:57.2]} 7... exf6 {[%clk 0:03:02]} 8. Bd3 {[%clk
0:02:55.9]} 8... O-O {[%clk 0:03:01.9]} 9. O-O {[%clk 0:02:56.6]} 9... Be6
{[%clk 0:03:00.5]} 10. Bf4 {[%clk 0:02:55.5]} 10... Nd7 {[%clk 0:03:00.8]} 11.
Qd2 {[%clk 0:02:55.5]} 11... Nb6 {[%clk 0:03:00.8]} 12. Bh6 {[%clk 0:02:55.2]}
12... Bd5 {[%clk 0:02:58.1]} 13. Bxg7 {[%clk 0:02:54.6]} 13... Kxg7 {[%clk
0:02:59]} 14. Nh2 {[%clk 0:02:32.9]} 14... f5 {[%clk 0:02:53.7]} 15. c3 {[%clk
0:02:32.5]} 15... Qh4 {[%clk 0:02:52.2]} 16. Rae1 {[%clk 0:02:22.2]} 16... Bxa2
{[%clk 0:02:48.4]} 17. Nf3 {[%clk 0:02:18]} 17... Qf6 {[%clk 0:02:48]} 18. Ne5
{[%clk 0:02:15.1]} 18... Be6 {[%clk 0:02:47.7]} 19. c4 {[%clk 0:02:08.2]} 19...
Rad8 {[%clk 0:02:47.1]} 20. Qc3 {[%clk 0:02:08]} 20... Rfe8 {[%clk 0:02:26]} 21.
b3 {[%clk 0:02:07.5]} 21... Nd7 {[%clk 0:02:25.6]} 22. f4 {[%clk 0:02:05.9]}
22... Nf8 {[%clk 0:02:19.8]} 23. Be2 {[%clk 0:01:55.6]} 23... Bc8 {[%clk
0:02:19.9]} 24. Bf3 {[%clk 0:01:55.5]} 24... Ne6 {[%clk 0:02:20.5]} 25. g3
{[%clk 0:01:50.7]} 25... Nxd4 {[%clk 0:02:18.6]} 26. Bg2 {[%clk 0:01:50.3]}
26... Re6 {[%clk 0:02:07.1]} 27. b4 {[%clk 0:01:49]} 27... b6 {[%clk 0:02:04.2]}
28. Ra1 {[%clk 0:01:41.8]} 28... Ne2+ {[%clk 0:02:02.2]} 0-1

[Event "Late-Titled-Tuesday-Blitz-June-18-2024"]
[Site "Chess.com"]
[Date "2024.06.18"]
[Round "3"]
[White "scandalgod"]
[Black "A4RookA3"]
[Result "1-0"]
[WhiteElo "2621"]
[BlackElo "2427"]
[TimeControl "180+1"]
[EndTime "14:25:53 PDT"]
[Termination "scandalgod won by resignation"]

1. d4 {[%clk 0:02:55.1]} 1... d5 {[%clk 0:03:00.1]} 2. c4 {[%clk 0:02:55.1]}
2... c6 {[%clk 0:03:00.7]} 3. Nc3 {[%clk 0:02:54.8]} 3... Nf6 {[%clk 0:03:01.2]}
4. e3 {[%clk 0:02:54.9]} 4... e6 {[%clk 0:03:00.8]} 5. Nf3 {[%clk 0:02:54.9]}
5... Nbd7 {[%clk 0:03:01.2]} 6. Bd3 {[%clk 0:02:53.1]} 6... dxc4 {[%clk
0:03:01.3]} 7. Bxc4 {[%clk 0:02:53.2]} 7... b5 {[%clk 0:03:02]} 8. Bd3 {[%clk
0:02:53.4]} 8... a6 {[%clk 0:03:02.7]} 9. e4 {[%clk 0:02:52.6]} 9... c5 {[%clk
0:03:02.1]} 10. e5 {[%clk 0:02:52.5]} 10... cxd4 {[%clk 0:02:58.6]} 11. Nxb5
{[%clk 0:02:51.8]} 11... axb5 {[%clk 0:02:54.7]} 12. exf6 {[%clk 0:02:51.3]}
12... Bb4+ {[%clk 0:02:46.1]} 13. Bd2 {[%clk 0:02:48.6]} 13... Bxd2+ {[%clk
0:02:45.3]} 14. Qxd2 {[%clk 0:02:45.4]} 14... Nxf6 {[%clk 0:02:42.6]} 15. Bxb5+
{[%clk 0:02:36.2]} 15... Bd7 {[%clk 0:02:33]} 16. Bxd7+ {[%clk 0:02:35.7]} 16...
Qxd7 {[%clk 0:02:33.9]} 17. O-O {[%clk 0:02:35.1]} 17... O-O {[%clk 0:02:33.2]}
18. Qxd4 {[%clk 0:02:27]} 18... Qb5 {[%clk 0:02:32.9]} 19. a4 {[%clk 0:02:23.3]}
19... Qb3 {[%clk 0:02:30.2]} 20. Ra3 {[%clk 0:02:21.3]} 20... Qb7 {[%clk
0:02:26.3]} 21. b4 {[%clk 0:02:18]} 21... Rfb8 {[%clk 0:02:25.2]} 22. b5 {[%clk
0:02:14.1]} 22... Nd5 {[%clk 0:02:21]} 23. h3 {[%clk 0:02:07.7]} 23... Ra5
{[%clk 0:02:13.7]} 24. Ne5 {[%clk 0:02:02.6]} 24... Rba8 {[%clk 0:02:08.9]} 25.
Rfa1 {[%clk 0:01:55.4]} 25... Nb6 {[%clk 0:02:07.8]} 26. Nc6 {[%clk 0:01:51.1]}
1-0

[Event "Late-Titled-Tuesday-Blitz-June-18-2024"]
[Site "Chess.com"]
[Date "2024.06.18"]
[Round "3"]
[White "merinasian"]
[Black "miraitrunks"]
[Result "1-0"]
[WhiteElo "2401"]
[BlackElo "2172"]
[TimeControl "180+1"]
[EndTime "14:25:54 PDT"]
[Termination "merinasian won by resignation"]

1. d4 {[%clk 0:01:44]} 1... d5 {[%clk 0:02:57]} 2. Nf3 {[%clk 0:01:43.3]} 2...
Nf6 {[%clk 0:02:54.6]} 3. c4 {[%clk 0:01:42.7]} 3... Bf5 {[%clk 0:02:54]} 4. e3
{[%clk 0:01:42.4]} 4... e6 {[%clk 0:02:53.7]} 5. Qb3 {[%clk 0:01:39.8]} 5... Nc6
{[%clk 0:02:53.1]} 6. cxd5 {[%clk 0:01:31.7]} 6... Nb4 {[%clk 0:02:52.5]} 7. Na3
{[%clk 0:01:28.7]} 7... Qxd5 {[%clk 0:02:46.9]} 8. Bc4 {[%clk 0:01:28]} 8... Qa5
{[%clk 0:02:02.3]} 9. O-O {[%clk 0:01:15.5]} 9... Bd6 {[%clk 0:01:55.3]} 10. Nb5
{[%clk 0:01:13.6]} 10... O-O {[%clk 0:01:50.7]} 11. Nxd6 {[%clk 0:01:12.6]}
11... cxd6 {[%clk 0:01:50]} 12. Bd2 {[%clk 0:01:13.3]} 1-0

[Event "Late-Titled-Tuesday-Blitz-June-18-2024"]
[Site "Chess.com"]
[Date "2024.06.18"]
[Round "3"]
[White "hblanco"]
[Black "Sanan_Sjugirov"]
[Result "0-1"]
[WhiteElo "2705"]
[BlackElo "2968"]
[TimeControl "180+1"]
[EndTime "14:26:00 PDT"]
[Termination "Sanan_Sjugirov won by resignation"]

1. d4 {[%clk 0:03:00.9]} 1... Nf6 {[%clk 0:02:54.2]} 2. c4 {[%clk 0:02:59.3]}
2... e6 {[%clk 0:02:54.5]} 3. Nf3 {[%clk 0:02:59.4]} 3... Bb4+ {[%clk
0:02:54.3]} 4. Bd2 {[%clk 0:02:59]} 4... Qe7 {[%clk 0:02:54.7]} 5. g3 {[%clk
0:02:58.8]} 5... Nc6 {[%clk 0:02:55]} 6. a3 {[%clk 0:02:59.4]} 6... Bxd2+ {[%clk
0:02:54.9]} 7. Qxd2 {[%clk 0:03:00.3]} 7... O-O {[%clk 0:02:52.2]} 8. Bg2 {[%clk
0:02:55.7]} 8... d5 {[%clk 0:02:48.5]} 9. Qc2 {[%clk 0:02:38.5]} 9... e5 {[%clk
0:02:33.2]} 10. dxe5 {[%clk 0:02:09.7]} 10... Nxe5 {[%clk 0:02:31.8]} 11. Nxe5
{[%clk 0:02:10.6]} 11... Qxe5 {[%clk 0:02:31.9]} 12. cxd5 {[%clk 0:02:11.5]}
12... Nxd5 {[%clk 0:02:26.3]} 13. O-O {[%clk 0:02:08.5]} 13... c6 {[%clk
0:01:55]} 14. e4 {[%clk 0:02:05.7]} 14... Nb6 {[%clk 0:01:54.6]} 15. Nd2 {[%clk
0:01:50.7]} 15... Be6 {[%clk 0:01:54.5]} 16. Nf3 {[%clk 0:01:43.3]} 16... Qb5
{[%clk 0:01:51.9]} 17. Nd4 {[%clk 0:01:24.3]} 17... Qc4 {[%clk 0:01:51.5]} 18.
Rac1 {[%clk 0:01:20.9]} 18... Qxd4 {[%clk 0:01:50.8]} 0-1

[Event "Late-Titled-Tuesday-Blitz-June-18-2024"]
[Site "Chess.com"]
[Date "2024.06.18"]
[Round "3"]
[White "Jahonas"]
[Black "Navyblue1"]
[Result "1-0"]
[WhiteElo "2404"]
[BlackElo "2177"]
[TimeControl "180+1"]
[EndTime "14:26:03 PDT"]
[Termination "Jahonas won by resignation"]

1. d4 {[%clk 0:03:00.9]} 1... Nf6 {[%clk 0:02:44]} 2. c4 {[%clk 0:03:00.5]} 2...
g6 {[%clk 0:02:41.7]} 3. Nf3 {[%clk 0:03:00.3]} 3... Bg7 {[%clk 0:02:41.2]} 4.
Nc3 {[%clk 0:03:00.6]} 4... d6 {[%clk 0:02:41.5]} 5. Bg5 {[%clk 0:03:00.5]} 5...
Nbd7 {[%clk 0:02:39.4]} 6. e4 {[%clk 0:03:00.6]} 6... O-O {[%clk 0:02:33.7]} 7.
Be2 {[%clk 0:03:00.5]} 7... c5 {[%clk 0:02:32.3]} 8. e5 {[%clk 0:02:50.6]} 8...
Ne8 {[%clk 0:01:57.1]} 9. Nd5 {[%clk 0:02:42.1]} 9... f6 {[%clk 0:01:55.4]} 10.
exf6 {[%clk 0:02:38.1]} 10... exf6 {[%clk 0:01:54.3]} 11. Be3 {[%clk 0:02:35.1]}
11... cxd4 {[%clk 0:01:53.1]} 12. Nxd4 {[%clk 0:02:34.7]} 12... Ne5 {[%clk
0:01:50.8]} 13. O-O {[%clk 0:02:28.1]} 13... Nc7 {[%clk 0:01:45.5]} 14. f4
{[%clk 0:02:24.4]} 14... Nc6 {[%clk 0:01:43.7]} 15. Nxc7 {[%clk 0:02:17.8]}
15... Qxc7 {[%clk 0:01:33.3]} 16. Nb5 {[%clk 0:02:16.6]} 16... Qe7 {[%clk
0:01:31.6]} 17. Bf2 {[%clk 0:02:01.3]} 17... Rd8 {[%clk 0:01:29.3]} 18. Bf3
{[%clk 0:01:59.3]} 18... Be6 {[%clk 0:01:25.9]} 19. Re1 {[%clk 0:01:59]} 19...
Qd7 {[%clk 0:01:20.6]} 20. Rxe6 {[%clk 0:01:57.5]} 20... Qxe6 {[%clk 0:01:10.1]}
21. Bd5 {[%clk 0:01:56.7]} 1-0

[Event "Late-Titled-Tuesday-Blitz-June-18-2024"]
[Site "Chess.com"]
[Date "2024.06.18"]
[Round "3"]
[White "picturesquecheck"]
[Black "enriquebutti"]
[Result "1-0"]
[WhiteElo "2381"]
[BlackElo "2089"]
[TimeControl "180+1"]
[EndTime "14:26:17 PDT"]
[Termination "picturesquecheck won by resignation"]

1. e4 {[%clk 0:03:00.9]} 1... c5 {[%clk 0:02:59.4]} 2. Nf3 {[%clk 0:03:01.2]}
2... d6 {[%clk 0:02:57.4]} 3. d4 {[%clk 0:03:01.6]} 3... cxd4 {[%clk 0:02:56.5]}
4. Nxd4 {[%clk 0:03:02.5]} 4... Nf6 {[%clk 0:02:56.5]} 5. Nc3 {[%clk 0:03:03]}
5... a6 {[%clk 0:02:56.6]} 6. Rg1 {[%clk 0:03:02.6]} 6... e5 {[%clk 0:02:49.5]}
7. Nb3 {[%clk 0:03:02.2]} 7... Be6 {[%clk 0:02:43.5]} 8. g4 {[%clk 0:03:00.1]}
8... d5 {[%clk 0:02:41.6]} 9. exd5 {[%clk 0:02:59.3]} 9... Nxd5 {[%clk 0:02:41]}
10. Nxd5 {[%clk 0:02:57.4]} 10... Qxd5 {[%clk 0:02:40.4]} 11. Qxd5 {[%clk
0:02:57.2]} 11... Bxd5 {[%clk 0:02:40]} 12. Be3 {[%clk 0:02:57.8]} 12... Nc6
{[%clk 0:02:36]} 13. O-O-O {[%clk 0:02:57]} 13... Be6 {[%clk 0:02:34.6]} 14. Kb1
{[%clk 0:02:57.1]} 14... Be7 {[%clk 0:02:29.6]} 15. Nc5 {[%clk 0:02:54.8]} 15...
Bxc5 {[%clk 0:02:28.7]} 16. Bxc5 {[%clk 0:02:54.5]} 16... Rd8 {[%clk 0:02:25.6]}
17. Be2 {[%clk 0:02:51.9]} 17... Rxd1+ {[%clk 0:02:19.8]} 18. Rxd1 {[%clk
0:02:50.3]} 18... f6 {[%clk 0:02:18.7]} 19. Bf3 {[%clk 0:02:46.3]} 19... Kf7
{[%clk 0:02:17.8]} 20. h3 {[%clk 0:02:38.4]} 20... Rd8 {[%clk 0:02:13.7]} 21.
Rxd8 {[%clk 0:02:37.5]} 21... Nxd8 {[%clk 0:02:12.9]} 22. b3 {[%clk 0:02:36.3]}
22... Nc6 {[%clk 0:02:09.3]} 23. c4 {[%clk 0:02:35]} 23... g6 {[%clk 0:02:04.8]}
24. Kc1 {[%clk 0:02:34.3]} 24... f5 {[%clk 0:02:04.3]} 25. Kd2 {[%clk
0:02:33.2]} 25... e4 {[%clk 0:02:02.7]} 26. Be2 {[%clk 0:02:29.5]} 26... f4
{[%clk 0:01:57.7]} 27. h4 {[%clk 0:02:17.5]} 27... h6 {[%clk 0:01:56.3]} 28. g5
{[%clk 0:02:15.7]} 28... hxg5 {[%clk 0:01:55.4]} 29. hxg5 {[%clk 0:02:16.6]}
29... f3 {[%clk 0:01:49.6]} 30. Bd1 {[%clk 0:02:14.9]} 30... Bf5 {[%clk
0:01:49]} 31. Bc2 {[%clk 0:02:09.9]} 31... Ke6 {[%clk 0:01:48.1]} 32. Ke3 {[%clk
0:01:59.6]} 32... Ke5 {[%clk 0:01:46.9]} 33. Bf8 {[%clk 0:01:51.4]} 1-0

[Event "Late-Titled-Tuesday-Blitz-June-18-2024"]
[Site "Chess.com"]
[Date "2024.06.18"]
[Round "3"]
[White "BillCoe"]
[Black "PoXerStar"]
[Result "1-0"]
[WhiteElo "2092"]
[BlackElo "2348"]
[TimeControl "180+1"]
[EndTime "14:26:32 PDT"]
[Termination "BillCoe won by resignation"]

1. e4 {[%clk 0:03:00.9]} 1... c6 {[%clk 0:02:57.6]} 2. d4 {[%clk 0:03:00.4]}
2... d5 {[%clk 0:02:57.7]} 3. exd5 {[%clk 0:03:01.3]} 3... cxd5 {[%clk
0:02:57.7]} 4. Bd3 {[%clk 0:03:01.9]} 4... Nc6 {[%clk 0:02:47.9]} 5. c3 {[%clk
0:03:01.7]} 5... Nf6 {[%clk 0:02:42.1]} 6. h3 {[%clk 0:03:01.9]} 6... e5 {[%clk
0:02:30.9]} 7. dxe5 {[%clk 0:03:02.8]} 7... Nxe5 {[%clk 0:02:31.8]} 8. Bc2
{[%clk 0:03:02]} 8... Bd6 {[%clk 0:02:03.9]} 9. Bg5 {[%clk 0:02:56.9]} 9... O-O
{[%clk 0:01:58]} 10. Ne2 {[%clk 0:02:53.4]} 10... h6 {[%clk 0:01:56.5]} 11. Bh4
{[%clk 0:02:52.1]} 11... g5 {[%clk 0:01:49.8]} 12. Bg3 {[%clk 0:02:51.5]} 12...
Ne4 {[%clk 0:01:49.8]} 13. Bxe4 {[%clk 0:02:39.8]} 13... dxe4 {[%clk 0:01:50.7]}
14. O-O {[%clk 0:02:39.1]} 14... Bf5 {[%clk 0:01:03.1]} 15. Qd5 {[%clk
0:02:33.1]} 15... Qe7 {[%clk 0:00:47.3]} 16. Nd2 {[%clk 0:02:30.5]} 16... Rad8
{[%clk 0:00:46.4]} 17. Nxe4 {[%clk 0:02:04.5]} 17... Nf3+ {[%clk 0:00:42.7]} 18.
gxf3 {[%clk 0:02:04.2]} 18... Bxg3 {[%clk 0:00:40.7]} 19. Qxf5 {[%clk
0:02:01.1]} 1-0

[Event "Late-Titled-Tuesday-Blitz-June-18-2024"]
[Site "Chess.com"]
[Date "2024.06.18"]
[Round "3"]
[White "Annawel"]
[Black "Mikayel99"]
[Result "1-0"]
[WhiteElo "3076"]
[BlackElo "2664"]
[TimeControl "180+1"]
[EndTime "14:26:33 PDT"]
[Termination "Annawel won by resignation"]

1. d4 {[%clk 0:03:00.9]} 1... Nf6 {[%clk 0:02:55.8]} 2. c4 {[%clk 0:03:00.1]}
2... e6 {[%clk 0:02:56.1]} 3. Nf3 {[%clk 0:02:59.1]} 3... d5 {[%clk 0:02:56.2]}
4. e3 {[%clk 0:02:58.2]} 4... c5 {[%clk 0:02:51.3]} 5. Nc3 {[%clk 0:02:58.2]}
5... Nc6 {[%clk 0:02:51.3]} 6. a3 {[%clk 0:02:58.1]} 6... dxc4 {[%clk
0:02:49.5]} 7. Bxc4 {[%clk 0:02:58.3]} 7... a6 {[%clk 0:02:45.4]} 8. O-O {[%clk
0:02:51.2]} 8... b5 {[%clk 0:02:38.7]} 9. Bd3 {[%clk 0:02:47.9]} 9... cxd4
{[%clk 0:02:28.9]} 10. exd4 {[%clk 0:02:47.3]} 10... Be7 {[%clk 0:02:28.3]} 11.
Bg5 {[%clk 0:02:29.8]} 11... Bb7 {[%clk 0:02:17.1]} 12. Rc1 {[%clk 0:02:20.4]}
12... O-O {[%clk 0:02:10]} 13. Bb1 {[%clk 0:02:19.8]} 13... g6 {[%clk
0:01:47.3]} 14. Re1 {[%clk 0:02:15.1]} 14... Nd5 {[%clk 0:01:40.5]} 15. Bh6
{[%clk 0:02:08.1]} 15... Re8 {[%clk 0:01:39.4]} 16. Ne4 {[%clk 0:02:07.5]} 16...
Rc8 {[%clk 0:01:20.7]} 17. Nc5 {[%clk 0:02:03.2]} 17... Qb6 {[%clk 0:01:17.8]}
18. Ng5 {[%clk 0:01:50.6]} 18... Qd8 {[%clk 0:00:51.9]} 19. Nxb7 {[%clk
0:01:44.8]} 1-0

[Event "Late-Titled-Tuesday-Blitz-June-18-2024"]
[Site "Chess.com"]
[Date "2024.06.18"]
[Round "3"]
[White "chessbaerchen"]
[Black "esrosenberg"]
[Result "1-0"]
[WhiteElo "2672"]
[BlackElo "2317"]
[TimeControl "180+1"]
[EndTime "14:26:43 PDT"]
[Termination "chessbaerchen won by resignation"]

1. d4 {[%clk 0:03:00.9]} 1... d5 {[%clk 0:02:59.2]} 2. Nf3 {[%clk 0:03:00.9]}
2... Bf5 {[%clk 0:02:58.2]} 3. c4 {[%clk 0:02:59.4]} 3... e6 {[%clk 0:02:58.6]}
4. Qb3 {[%clk 0:02:55.2]} 4... Nc6 {[%clk 0:02:58.6]} 5. cxd5 {[%clk 0:02:52.4]}
5... exd5 {[%clk 0:02:52.8]} 6. Bf4 {[%clk 0:02:49.9]} 6... Na5 {[%clk
0:02:46.6]} 7. Qe3+ {[%clk 0:02:41.6]} 7... Be6 {[%clk 0:02:12.7]} 8. Nc3 {[%clk
0:02:39.6]} 8... Nf6 {[%clk 0:02:09.3]} 9. Ne5 {[%clk 0:02:38.4]} 9... Bb4
{[%clk 0:02:03.2]} 10. a3 {[%clk 0:02:35.8]} 10... Bxc3+ {[%clk 0:01:58.1]} 11.
Qxc3 {[%clk 0:02:36.7]} 11... c6 {[%clk 0:01:53.7]} 12. e3 {[%clk 0:02:22.9]}
12... Ne4 {[%clk 0:01:52.2]} 13. Qc2 {[%clk 0:02:22.6]} 13... f6 {[%clk
0:01:46.9]} 14. Nf3 {[%clk 0:02:18.5]} 14... Nd6 {[%clk 0:01:41.3]} 15. Bd3
{[%clk 0:02:14.5]} 15... g6 {[%clk 0:01:32.3]} 16. O-O {[%clk 0:02:07.7]} 16...
Bf5 {[%clk 0:01:14.4]} 17. Bxf5 {[%clk 0:01:33.9]} 17... Nxf5 {[%clk 0:01:13.8]}
18. e4 {[%clk 0:01:32.5]} 18... dxe4 {[%clk 0:01:04.8]} 19. Qxe4+ {[%clk
0:01:33.4]} 19... Qe7 {[%clk 0:01:05]} 20. Qd3 {[%clk 0:01:33.1]} 20... O-O
{[%clk 0:01:03.6]} 21. b4 {[%clk 0:01:32.4]} 1-0

[Event "Late-Titled-Tuesday-Blitz-June-18-2024"]
[Site "Chess.com"]
[Date "2024.06.18"]
[Round "3"]
[White "tactic"]
[Black "Manukyan_Artak"]
[Result "1-0"]
[WhiteElo "2755"]
[BlackElo "2503"]
[TimeControl "180+1"]
[EndTime "14:26:49 PDT"]
[Termination "tactic won by resignation"]

1. e4 {[%clk 0:03:00.9]} 1... c6 {[%clk 0:02:59.9]} 2. d4 {[%clk 0:03:01.1]}
2... d5 {[%clk 0:03:00.8]} 3. Nc3 {[%clk 0:03:01.9]} 3... dxe4 {[%clk
0:03:01.2]} 4. Nxe4 {[%clk 0:03:02.8]} 4... Nf6 {[%clk 0:03:01.7]} 5. Nxf6+
{[%clk 0:03:03.5]} 5... exf6 {[%clk 0:03:02.6]} 6. c3 {[%clk 0:03:04.4]} 6...
Bd6 {[%clk 0:03:03.1]} 7. Bd3 {[%clk 0:03:05.2]} 7... O-O {[%clk 0:03:03.1]} 8.
Qc2 {[%clk 0:03:06]} 8... h5 {[%clk 0:03:03.5]} 9. Ne2 {[%clk 0:03:06.8]} 9...
Qc7 {[%clk 0:03:03.1]} 10. g3 {[%clk 0:03:05.8]} 10... Bh3 {[%clk 0:02:59.4]}
11. Be3 {[%clk 0:03:02.8]} 11... Nd7 {[%clk 0:02:58.3]} 12. O-O-O {[%clk
0:03:02.9]} 12... Rfe8 {[%clk 0:02:58.2]} 13. Nf4 {[%clk 0:03:02.1]} 13... Bxf4
{[%clk 0:02:57.7]} 14. Bxf4 {[%clk 0:03:02.4]} 14... Qa5 {[%clk 0:02:57.6]} 15.
Kb1 {[%clk 0:03:01.4]} 15... Nf8 {[%clk 0:02:51.3]} 16. f3 {[%clk 0:03:00.4]}
16... Be6 {[%clk 0:02:41.1]} 17. b3 {[%clk 0:02:52.1]} 17... b5 {[%clk
0:02:39.4]} 18. Rhg1 {[%clk 0:02:38.9]} 18... b4 {[%clk 0:02:38.5]} 19. c4
{[%clk 0:02:38.5]} 19... g5 {[%clk 0:02:30.9]} 20. h4 {[%clk 0:02:10.3]} 20...
gxf4 {[%clk 0:02:17.1]} 21. gxf4+ {[%clk 0:02:11.2]} 21... Kh8 {[%clk
0:02:17.3]} 22. Qg2 {[%clk 0:02:11.8]} 22... Ng6 {[%clk 0:02:08.7]} 23. d5
{[%clk 0:02:12.2]} 23... Rg8 {[%clk 0:01:52]} 24. dxe6 {[%clk 0:02:06.1]} 24...
Nxf4 {[%clk 0:01:45.1]} 25. Qd2 {[%clk 0:02:06.1]} 25... Rxg1 {[%clk 0:01:39.6]}
26. Rxg1 {[%clk 0:02:05.5]} 26... Qe5 {[%clk 0:01:38.9]} 27. exf7 {[%clk
0:01:59]} 27... Rf8 {[%clk 0:01:36.7]} 28. Be4 {[%clk 0:01:40.3]} 28... f5
{[%clk 0:01:23.6]} 29. Rg5 {[%clk 0:01:39]} 29... Rxf7 {[%clk 0:01:19.3]} 30.
Qd8+ {[%clk 0:01:38.8]} 30... Kh7 {[%clk 0:01:19.7]} 31. Qg8+ {[%clk 0:01:38.9]}
31... Kh6 {[%clk 0:01:17.7]} 32. Qxf7 {[%clk 0:01:32.8]} 1-0

[Event "Late-Titled-Tuesday-Blitz-June-18-2024"]
[Site "Chess.com"]
[Date "2024.06.18"]
[Round "3"]
[White "scabies1"]
[Black "Slovineanu"]
[Result "0-1"]
[WhiteElo "2321"]
[BlackElo "2558"]
[TimeControl "180+1"]
[EndTime "14:26:53 PDT"]
[Termination "Slovineanu won by resignation"]

1. e4 {[%clk 0:03:00.9]} 1... c6 {[%clk 0:02:59.9]} 2. d4 {[%clk 0:02:59.7]}
2... d5 {[%clk 0:03:00.4]} 3. Nc3 {[%clk 0:03:00.2]} 3... dxe4 {[%clk
0:03:00.3]} 4. Nxe4 {[%clk 0:03:01.1]} 4... Nf6 {[%clk 0:03:00.7]} 5. Nxf6+
{[%clk 0:03:01.1]} 5... exf6 {[%clk 0:03:01.1]} 6. c3 {[%clk 0:03:01.8]} 6...
Bd6 {[%clk 0:03:01.3]} 7. Bd3 {[%clk 0:03:02.3]} 7... Na6 {[%clk 0:03:01.6]} 8.
Ne2 {[%clk 0:03:01.3]} 8... Nc7 {[%clk 0:03:01.1]} 9. O-O {[%clk 0:02:57.4]}
9... O-O {[%clk 0:03:00.6]} 10. Qc2 {[%clk 0:02:56.6]} 10... g6 {[%clk
0:02:59.4]} 11. Bf4 {[%clk 0:02:50.7]} 11... Bg4 {[%clk 0:02:55.6]} 12. Bxd6
{[%clk 0:02:45.1]} 12... Qxd6 {[%clk 0:02:54.1]} 13. h3 {[%clk 0:02:45.7]} 13...
Bxe2 {[%clk 0:02:52.4]} 14. Bxe2 {[%clk 0:02:40.8]} 14... Rfe8 {[%clk
0:02:44.7]} 15. Rfe1 {[%clk 0:02:40]} 15... a5 {[%clk 0:02:41.4]} 16. Bf3 {[%clk
0:02:33.2]} 16... Kg7 {[%clk 0:02:26.8]} 17. Qb3 {[%clk 0:02:30.8]} 17... b5
{[%clk 0:02:22.8]} 18. a4 {[%clk 0:02:26.4]} 18... b4 {[%clk 0:02:09.2]} 19.
cxb4 {[%clk 0:01:53.2]} 19... axb4 {[%clk 0:02:08.6]} 20. Rxe8 {[%clk
0:01:52.4]} 20... Rxe8 {[%clk 0:02:07.3]} 21. Qc4 {[%clk 0:01:51.8]} 21... Nd5
{[%clk 0:01:56.9]} 22. a5 {[%clk 0:01:49.1]} 22... Ra8 {[%clk 0:01:38.6]} 23. a6
{[%clk 0:01:49]} 23... Ra7 {[%clk 0:01:34.4]} 24. h4 {[%clk 0:01:48.1]} 24... h5
{[%clk 0:01:33.9]} 25. g3 {[%clk 0:01:47.9]} 25... f5 {[%clk 0:01:33.2]} 26. Ra5
{[%clk 0:01:43.2]} 26... f4 {[%clk 0:01:22.5]} 27. Kg2 {[%clk 0:01:22.6]} 27...
fxg3 {[%clk 0:01:20.8]} 28. fxg3 {[%clk 0:01:23.1]} 28... Ne3+ {[%clk
0:01:20.5]} 0-1

[Event "Late-Titled-Tuesday-Blitz-June-18-2024"]
[Site "Chess.com"]
[Date "2024.06.18"]
[Round "3"]
[White "crazycheesecake"]
[Black "ToddBryant"]
[Result "0-1"]
[WhiteElo "2129"]
[BlackElo "2389"]
[TimeControl "180+1"]
[EndTime "14:26:57 PDT"]
[Termination "ToddBryant won on time"]

1. e4 {[%clk 0:03:00.9]} 1... c5 {[%clk 0:03:00.5]} 2. Nf3 {[%clk 0:02:57.4]}
2... d6 {[%clk 0:03:01]} 3. d4 {[%clk 0:02:57.9]} 3... cxd4 {[%clk 0:03:01.9]}
4. Nxd4 {[%clk 0:02:58.4]} 4... Nf6 {[%clk 0:03:02.6]} 5. Nc3 {[%clk 0:02:59]}
5... g6 {[%clk 0:03:03.2]} 6. Be3 {[%clk 0:02:59]} 6... Bg7 {[%clk 0:03:03.7]}
7. f3 {[%clk 0:02:58.8]} 7... O-O {[%clk 0:03:04.3]} 8. Qd2 {[%clk 0:02:59.2]}
8... Nc6 {[%clk 0:03:04.9]} 9. O-O-O {[%clk 0:02:59.3]} 9... Bd7 {[%clk
0:03:05.4]} 10. g4 {[%clk 0:02:55.6]} 10... Rc8 {[%clk 0:03:05.3]} 11. Kb1
{[%clk 0:02:55.3]} 11... Ne5 {[%clk 0:03:04.8]} 12. h4 {[%clk 0:02:54.4]} 12...
Qa5 {[%clk 0:03:04.6]} 13. a3 {[%clk 0:02:42.5]} 13... Nxf3 {[%clk 0:02:46.3]}
14. Nxf3 {[%clk 0:02:37.8]} 14... Rxc3 {[%clk 0:02:46.7]} 15. Qxc3 {[%clk
0:02:30.9]} 15... Qxc3 {[%clk 0:02:47]} 16. bxc3 {[%clk 0:02:25.6]} 16... Bxg4
{[%clk 0:02:44.8]} 17. Bg2 {[%clk 0:02:11.4]} 17... Nxe4 {[%clk 0:02:45]} 18.
Bd4 {[%clk 0:01:59.7]} 18... e5 {[%clk 0:02:39.1]} 19. Rhe1 {[%clk 0:01:15.2]}
19... f5 {[%clk 0:02:30.6]} 20. Rd3 {[%clk 0:00:03.6]} 20... exd4 {[%clk
0:02:22.9]} 21. cxd4 {[%clk 0:00:04.5]} 21... Rc8 {[%clk 0:02:12.7]} 0-1